Cogmind - Beta 13 @@@ ROGUE MODE // 2024.07.01 @ 10:26:16 Player: Heclapar Result: Destroyed by VP-ZSR(R) with Subdweller Machine Gun Performance ------------- Evolutions (0) 0 Regions Visited (3) 600 Robots Destroyed (27) 135 Value Destroyed (511) 511 Prototype IDs (2) 40 Alien Tech Used (0) 0 Bonus (-241) -241 TOTAL SCORE: 1045 Bonus ------- Friendly Fire -241 Cogmind --------- Core Integrity 0/250 Matter 230/300 Energy 250/250 System Corruption 0% Temperature Cool (6) Movement Core (500) Ox9 Location -10/Subcaves Parts ------- > --- POWER (1) -------- Ion Engine > --- PROPULSION (2) --- (None) > --- UTILITY (2) ------ Large Storage Unit Structural Scanner > --- WEAPON (2) ------- Assault Rifle > --- INVENTORY (15) --- Light Ion Engine Aluminum Leg Compact Wheel Compact Wheel High-capacity Storage Unit Large Matter Pod (150) Light Armor Plating Scrap Shield Tractor Beam Subdweller Laser Assault Rifle Assault Rifle Assault Rifle Light Assault Rifle Peak State ------------ > --- POWER ------------ Ion Engine > --- PROPULSION ------- Light Treads Light Treads > --- UTILITY ---------- Large Storage Unit Structural Scanner > --- WEAPON ----------- Assault Rifle Bore Cannon > --- INVENTORY -------- Light Ion Engine Aluminum Leg Compact Wheel Compact Wheel High-capacity Storage Unit Large Matter Pod Light Armor Plating Scrap Shield Tractor Beam Small Laser Assault Rifle Assault Rifle Assault Rifle Light Assault Rifle [Rating: 12] Favorites ----------- Power Ion Engine Engine Ion Engine Propulsion Light Treads Treads Light Treads Leg Aluminum Leg Utility Large Storage Unit Device Structural Scanner Storage Large Storage Unit Processor Signal Interpreter Protection Light Armor Plating Weapon Assault Rifle Energy Gun Small Laser Ballistic Gun Assault Rifle Ballistic Cannon Bore Cannon Build | -11 -10 -10 -10 ------- Run | Yrd Mat Min Sub Slots Evolved . | . . . . Power . | . . . . Propulsion . | . . . . Utility . | . . . . Weapon . | . . . . Parts Attached 17 | . 14 1 2 Power 1 | . 1 . . Engine 1 | . 1 . . Core . | . . . . Reactor . | . . . . Propulsion 3 | . 2 1 . Treads 3 | . 2 1 . Leg . | . . . . Wheel . | . . . . Hover . | . . . . Flight . | . . . . Utility 7 | . 6 . 1 Device 3 | . 2 . 1 Storage 1 | . 1 . . Processor 2 | . 2 . . Hackware . | . . . . Protection 1 | . 1 . . Artifact . | . . . . Weapon 6 | . 5 . 1 Energy Gun . | . . . . Energy Cannon . | . . . . Ballistic Gun 5 | . 5 . . Ballistic Cannon 1 | . . . 1 Launcher . | . . . . Special Weapon . | . . . . Impact Weapon . | . . . . Slashing Weapon . | . . . . Piercing Weapon . | . . . . Special Melee Weapon . | . . . . Unidentified Prototypes . | . . . . Parts Lost 8 | . 5 . 3 Power 1 | . 1 . . Propulsion 4 | . 2 . 2 Utility 1 | . 1 . . Weapon 2 | . 1 . 1 Highest Loss Streak 4 | . 4 . 3 To Critical Strikes 1 | . . . 1 Average Slot Usage (%) 97 | . 96 100 99 Engine 13 | . 13 14 14 Treads 25 | . 23 28 27 Leg 2 | . 4 . . Device 5 | . 7 . 4 Storage 14 | . 14 14 14 Processor 1 | . 1 . . Protection 5 | . 2 14 9 Ballistic Gun 26 | . 26 28 26 Naked Turns . | . . . . Heaviest Build 37 | 12 32 32 37 Greatest Support 40 | 20 40 40 40 Greatest Overweight (x) . | . . . . Average Overweight (x) . | . . . . Largest Inventory Capacity 15 | . 15 15 15 Average Capacity 12 | . 11 15 15 Most Carried 15 | . 11 13 15 Average Carried 10 | . 8 12 14 Final Capacity 15 | 8 15 15 15 Final Carried 15 | 6 11 13 15 Class Distribution -------------------- 100% | Mutant Dominant Class ---------------- Mutant | -10/Materials Mutant | -10/Mines Mutant | -10/Subcaves Resources | -11 -10 -10 -10 ----------- Run | Yrd Mat Min Sub Matter Collected 1148 | 200 734 28 186 Remotely . | . . . . Salvage Created 927 | . 756 51 120 Parts 63 | . 51 6 6 Haulers Intercepted 2 | . 2 . . Recyclers Shooed 1 | . 1 . . Parts Field Recycled . | . . . . Retrieved Matter . | . . . . Parts Self-Destructed 13 | . . . 13 Prevented . | . . . . Kills | -11 -10 -10 -10 ------- Run | Yrd Mat Min Sub Combat Hostiles Destroyed 20 | . 16 3 1 Guns 20 | . 16 3 1 Classes Destroyed 8 | . 6 . 2 Worker 2 | . 2 . . Hauler 2 | . 2 . . Recycler 1 | . 1 . . Operator 1 | . 1 . . Swarmer 9 | . 6 3 . Grunt 10 | . 10 . . Subdweller 1 | . . . 1 Guerrilla 1 | . . . 1 Best Kill Streak 7 | . 7 3 1 Combat Bots Only 6 | . 6 3 1 Max Kills in Single Turn 2 | . 2 2 1 Gunslinging 1 | . 1 1 . Exploded . | . . . . Melee . | . . . . Uniques/NPCs Destroyed . | . . . . Combat | -11 -10 -10 -10 -------- Run | Yrd Mat Min Sub Hostile Shots Fired 158 | . 114 11 33 Missed 29 | . 21 2 6 Damage Taken 1601 | . 966 70 565 Core 271 | . 166 15 90 Absorbed by Shields . | . . . . Core Remaining (%) 100 | 100 . . . Volleys Fired 117 | . 76 3 38 Largest 2 | . 2 2 2 Hottest 77 | . 60 40 77 Shots Fired 231 | . 152 6 73 Gun 223 | . 152 6 65 Cannon 8 | . . . 8 Launcher . | . . . . Special . | . . . . Kinetic 227 | . 148 6 73 Thermal 4 | . 4 . . Explosive . | . . . . Electromagnetic . | . . . . Robot Hit Streak 15 | . 15 5 11 Robot Miss Streak 3 | . 3 1 3 Penetration Max 1 | . . . 1 Secondary Targets 5 | . 4 1 . Max Gunslinging Chain 1 | . 1 1 . Shots Hit Robots 131 | . 100 5 26 Core Hits 52 | . 38 3 11 Critical Kills . | . . . . Critical Parts Destroyed . | . . . . Critical Strikes 1 | . . . 1 Destroy 1 | . . . 1 Melee Attacks . | . . . . Impact . | . . . . Slashing . | . . . . Piercing . | . . . . Sneak Attacks . | . . . . Combat Hostiles . | . . . . Follow-up Attacks . | . . . . Damage Inflicted 1570 | . 1160 57 353 Guns 1439 | . 1158 57 224 Cannons 129 | . . . 129 Explosions . | . . . . Melee . | . . . . Ramming 2 | . 2 . . Kinetic 1557 | . 1147 57 353 Thermal 11 | . 11 . . Explosive . | . . . . Electromagnetic . | . . . . Impact . | . . . . Slashing . | . . . . Piercing . | . . . . Highest Corruption . | . . . . Average Corruption . | . . . . Corruption Purged . | . . . . Corruption Blocked . | . . . . Overload Shots . | . . . . Overflow Damage . | . . . . Projectiles . | . . . . Explosions . | . . . . Melee . | . . . . Knockbacks 5 | . . . 5 Impact . | . . . . Kinetic 3 | . . . 3 Secondary 2 | . . . 2 Self-Inflicted Damage . | . . . . Shots . | . . . . Rammed 1 | . 1 . . Targets Rammed 1 | . 1 . . Kicked . | . . . . Crushed . | . . . . Highest Temperature 20 | . 20 . . Average Temperature 6 | . 6 . . Received Heat Transfer 525 | . 429 . 96 Siege Activations . | . . . . Robots Corrupted . | . . . . Combat Hostiles . | . . . . Parts Fried . | . . . . Impact Corruptions . | . . . . Robots Melted . | . . . . Combat Hostiles . | . . . . Parts Melted . | . . . . Heat Transferred 25 | . 25 . . Parts Sabotaged . | . . . . Parts Stolen . | . . . . Parts Stripped . | . . . . Power Chain Reactions . | . . . . Alert | -11 -10 -10 -10 ------- Run | Yrd Mat Min Sub Peak Influence 200 | . 200 101 . Initial 31 | . . 31 . Average 50 | . 45 73 . Maximum Alert Level 1 | . 1 . . Low Security (%) 98 | . 98 100 . Level 1 1 | . 1 . . Level 2 . | . . . . Level 3 . | . . . . Level 4 . | . . . . Level 5 . | . . . . High Security . | . . . . Max Security . | . . . . Squads Dispatched 4 | . 4 . . Investigation 3 | . 3 . . Extermination . | . . . . Reinforcement 1 | . 1 . . Assault . | . . . . Garrison . | . . . . Intercept . | . . . . Searches Triggered . | . . . . Construction Impeded . | . . . . Haulers Reinforced . | . . . . Active Scanning Responses . | . . . . Cargo Convoy Interrupts . | . . . . Stealth | -11 -10 -10 -10 --------- Run | Yrd Mat Min Sub Distress Signals . | . . . . Communications Jammed . | . . . . Distress Signals . | . . . . Times Spotted 42 | . 31 3 8 Peak Tracking Total 8 | . 8 3 7 Tactical Retreats 2 | . 2 . . Traps | -11 -10 -10 -10 ------- Run | Yrd Mat Min Sub Traps Triggered 2 | . 2 . . Indirectly . | . . . . Trap Hack Attempts . | . . . . Triggered . | . . . . Disarmed . | . . . . Reprogrammed . | . . . . Reused . | . . . . Traps Extracted . | . . . . Installed . | . . . . Triggered . | . . . . Machines | -11 -10 -10 -10 ---------- Run | Yrd Mat Min Sub Machines Disabled . | . . . . Max in Single Turn . | . . . . Machines Repaired . | . . . . Machines Dismantled . | . . . . Machines Sabotaged . | . . . . Overloaded Fab Kills . | . . . . Hacking | -11 -10 -10 -10 --------- Run | Yrd Mat Min Sub Machines Accessed 8 | . 8 . . Terminals 7 | . 7 . . Fabricators . | . . . . Repair Stations . | . . . . Recycling Units 1 | . 1 . . Scanalyzers . | . . . . Garrison Access . | . . . . Total Hacks 26 | . 26 . . Successful 12 | . 12 . . Failed 14 | . 14 . . Catastrophic 1 | . 1 . . Database Lockouts . | . . . . Manual 16 | . 16 . . Terminals 20 | . 20 . . Fabricators . | . . . . Repair Stations . | . . . . Recycling Units 6 | . 6 . . Scanalyzers . | . . . . Garrison Access . | . . . . Terminal Hacks 3 | . 3 . . Prototype ID Bank 1 | . 1 . . Branch Access Points 1 | . 1 . . Unreport Threat 1 | . 1 . . Fabricator Hacks . | . . . . Repair Station Hacks . | . . . . Recycling Unit Hacks 4 | . 4 . . Process 1 | . 1 . . Retrieve Matter 2 | . 2 . . Retrieve Components 1 | . 1 . . Scanalyzer . | . . . . Garrison Access Hacks . | . . . . Unauthorized Hacks 5 | . 5 . . Terminals 5 | . 5 . . Botnet 5 | . 5 . . Fabricators . | . . . . Repair Stations . | . . . . Recycling Units . | . . . . Scanalyzers . | . . . . Garrison Access . | . . . . Data Cores Recovered 1 | . 1 . . Used . | . . . . Hacking Detections 8 | . 8 . . Full Trace Events 3 | . 3 . . Feedback Events . | . . . . Feedback Blocked . | . . . . Robot Schematics Acquired . | . . . . Robots Built . | . . . . Authchips . | . . . . Time . | . . . . Total Robot Build Rating . | . . . . Part Schematics Acquired . | . . . . Parts Built . | . . . . Authchips . | . . . . Time . | . . . . Total Part Build Rating . | . . . . Parts Repaired . | . . . . Time . | . . . . Parts Recycled . | . . . . Recycled Matter 140 | . 140 . . Retrieved Matter . | . . . . Retrieved Components . | . . . . Parts Scanalyzed . | . . . . Part Schematics Acquired . | . . . . Parts Damaged . | . . . . Bothacking | -11 -10 -10 -10 ------------ Run | Yrd Mat Min Sub Used RIF Installer . | . . . . Robots Hacked . | . . . . Non-combat . | . . . . Combat . | . . . . Robot Hacks Applied . | . . . . Relay Couplers Released . | . . . . Fabnet Peak Effective % . | . . . . Robots Rewired . | . . . . Allies Hacked . | . . . . Hacks Repelled . | . . . . Allies | -11 -10 -10 -10 -------- Run | Yrd Mat Min Sub Total Allies . | . . . . Largest Group . | . . . . Highest-Rated Group . | . . . . Highest-Rated Ally . | . . . . Total Orders . | . . . . Ally Attacks . | . . . . Total Damage . | . . . . Kills . | . . . . Allies Corrupted . | . . . . Allies Melted . | . . . . Intel | -11 -10 -10 -10 ------- Run | Yrd Mat Min Sub Robot Analysis Total . | . . . . Derelict Logs Recovered 2 | . . 2 . Drone Launches . | . . . . Drone Recoveries . | . . . . Exploration | -11 -10 -10 -10 ------------- Run | Yrd Mat Min Sub Turns Passed 2512 | . 1484 323 705 Spaces Moved 1184 | 1 781 129 273 Core . | . . . . Treads 1048 | . 646 129 273 Legs 136 | 1 135 . . Wheels . | . . . . Hover . | . . . . Flight . | . . . . Fastest Speed 120 | 120 120 160 160 Average Speed 155 | 120 153 160 160 Slowest Speed 160 | 120 160 160 160 Overloaded Moves . | . . . . Propulsion Burnouts . | . . . . Robots Hopped . | . . . . Cave-ins Triggered . | . . . . Exploration Rate (%) 31 | 2 91 25 7 Regions Visited 3 Branch Regions 2 Pre-discovered Areas . | . . . . Known Exits Taken 2 | . 1 1 . Unknown Exits Taken 1 | 1 . . . Scrap Searched 2 | . . 1 1 Spaces Dug . | . . . . Terrain Destroyed . | . . . . Melee . | . . . . Projectile . | . . . . AOE . | . . . . Terrain Rammed . | . . . . Walls Destroyed . | . . . . Machines Disabled . | . . . . Actions | -11 -10 -10 -10 --------- Run | Yrd Mat Min Sub Total 1633 | . 925 239 469 Wait 290 | . 36 106 148 Move 1181 | . 780 128 273 Hop . | . . . . Pick Up 14 | . 9 1 4 Fast Attach 6 | . 6 . . Attach 3 | . 3 . . Detach 1 | . 1 . . Swap 8 | . 5 1 2 Drop 11 | . 8 . 3 Fire 117 | . 76 3 38 Melee . | . . . . Ram . | . . . . Kick . | . . . . Crush 1 | . 1 . . Escape Stasis . | . . . . Rewire 1 | . . . 1 Trap . | . . . . Miscellaneous . | . . . . Route ------- -11/Scrapyard -10/Materials (discovered 5 exits: [*Mat x3] / *Min / Sub) -10/Mines -10/Subcaves (discovered 1 exit: [*Mat]) History --------- Turn | Location | Event 1 | -11/Scrapyard | Discovered new exit (range 0) 1 | -11/Scrapyard | Entered Materials 12 | -10/Materials | Identified exit to Mines 284 | -10/Materials | Lost 4 parts (2n1u1w) 316 | -10/Materials | Build established: Mutant 326 | -10/Materials | Discovered new exit (range 3) 522 | -10/Materials | Discovered new exit (range 8) 740 | -10/Materials | Core integrity fell below 50% 894 | -10/Materials | Discovered new exit (range 3) 897 | -10/Materials | Discovered new exit (range 9) 1485 | -10/Materials | Entered Mines 1486 | -10/Mines | Assembled infested the area 1576 | -10/Mines | Learned Materials garrison access intel 1644 | -10/Mines | Met a Derelict bent on vengeance 1652 | -10/Mines | Identified exit to Subcaves 1808 | -10/Mines | Entered Subcaves 2464 | -10/Subcaves | Discovered new exit (range 11) 2489 | -10/Subcaves | Ambushed by swarm of Subdwellers 2512 | -10/Subcaves | Core integrity fell below 20% 2513 | -10/Subcaves | Destroyed by VP-ZSR(R) with Subdweller Machine Gun Last Messages --------------- 02496_ A2-GF6(R) emerges from the Twisted Machinery. 02496_ VP-ZSR(R) emerges from the Twisted Machinery. 02500_ A2-GF6(R) knocked back. 02503_ HV Slug penetrates E6-RWB(R). 02503_ E6-RWB(R) knocked back. 02503_ HV Slug penetrates E6-RWB(R). 02503_ HV Slug penetrates 9Q-4VB(R). 02503_ 9Q-4VB(R) suffers critical hit (Destroy). 02506_ HV Slug penetrates 39-KOP(R). 02506_ 2I-MO6(R) knocked back. 02507_ A2-GF6(R) destroyed. 02507_ Critical hit (Destroy). 02507_ Lgt. Treads destroyed. 02509_ HV Slug penetrates Wall. 02510_ Bore Cannon destroyed. 02510_ Lgt. Treads destroyed. 02511_ E6-RWB(R) affixes Scrap Shield Fragment to Scrap Shield. Map ----- +----------------------------------------------------+ | ???????????????????????### ## ##????????? | | ????????????????????????### ## ##????????? | | ????????????????????????####### ##????????? | | ?????????????????????????##### ###????????? | | ????????????????????????????## [ ####????????? | | ????????????????????????????### ! ###?????????? | | ???????????????????????######## = ####????????? | | ???????????????????????####### ## "###???????? | | ???????????????????????## "## ""###""""##???????? | | ??????????????????????### / ""####" ##???????? | | ????????###???########### =[" ""#### ##???????? | | ????????###??? ######### """###?#"" ##???????? | | ???????# ???## ## ### """#### ?""""##???????? | | ???????## ??## "" ##""??""""##???????? | | ???????### ?### """"""""?????##????????? | | ???????### #### #####"""""???????????????? | | ???????## ### ###### ""??????????????? | | ???????## ###" " ??????????????? | | ???????## ## " " ???????????????? | | ???????## ? ## " " ""????????????????? | | ????????????## " ""????????????????? | | ????????????## < ### ""????????????????? | | ????????????## ### ######??????????????????? | | ????????????## ###; ###????????????????????? | | ????????????## ##### ###????????????????????? | | ????????????### ##### @ ### ??????????????? | | ????????????### ??##### ;## ###??????????????? | | ?????????????## ??## RR% "###?????????????? | | ?????????????## ??### !R[ ""# ?????????????? | | ????????????? ??#### RRR&% <### ?????????????? | | ???????????????????####### &&< # # ?????????????? | | ????????????????????########R < ##???????????????? | | ????????????????????????######<###???????????????? | | ???????????????????????????#######???????????????? | | ?????????????????????????????????????????????????? | | ?????????????????????????????????????????????????? | | ?????????????????????????????????????????????????? | | ?????????????????????????????????????????????????? | | ?????????????????????????????????????????????????? | | ?????????????????????????????????????????????????? | | ?????????????????????????????????????????????????? | | ?????????????????????????????????????????????????? | | ?????????????????????????????????????????????????? | | ?????????????????????????????????????????????????? | | ?????????????????????????????????????????????????? | | ?????????????????????????????????????????????????? | | ?????????????????????????????????????????????????? | | ?????????????????????????????????????????????????? | | ?????????????????????????????????????????????????? | | ?????????????????????????????????????????????????? | +----------------------------------------------------+ Best States ------------- Heat Dissipation 35 Energy Generation 10 Energy Capacity 250 Matter Stores 300 Matter Capacity 300 Sight Range 16 Terrain Scan Density 10 Armor Coverage 150 Evasion (%) 55 Recoil Reduction 2 Item Schematics ----------------- None Robot Schematics ------------------ None Fabricated ------------ Nothing Alien Tech Used ----------------- None Achievements -------------- None Challenges ------------ None Game ------ Seed ShockHypervelocityInjector Manual? 0 Play Time 00:14:38 Cumulative 74.4 hours Start 2024.07.01 @ 10:12:17 End 2024.07.01 @ 10:26:16 Sessions 1 Manual Loads 0 Difficulty Rogue Special Mode None Game No. 85 Rogue 85 Adventurer 0 Explorer 0 Win Type - Total 0 Types 0/0/0/0/0/0/0/0/0 Lore% 40 Gallery% 55 Achievement% 50 Wizard Run 0 Options --------- Layout 1 ASCII 0 Keyboard 0 Movement Mouse Keybinds 0 Fullscreen 1 Font 24/Terminus Map View 50x35 Zoom Use 0% Tactical HUD 1 Map Filters NONE Filters NONE Steam 1 RUN: 736b1b96-1f92-422e-a905-b3169b222c2c